Cogmind - Beta 17 @@@ ROGUE MODE // 2026.07.29 @ 20:20:57 Player: Afro Result: Self-destructed Performance ------------- Evolutions (3) 1500 Regions Visited (6) 1200 Robots Destroyed (66) 330 Value Destroyed (1324) 1324 Prototype IDs (26) 520 Alien Tech Used (0) 0 Bonus (1083) 1083 TOTAL SCORE: 5957 Bonus ------- High Alert Combat Kills 23 Follower Combat Kills 760 Aligned with FarCom 300 Cogmind --------- Core Integrity 336/700 Matter 300/300 Energy 9/100 System Corruption 5% Temperature Cool (18) Movement Core (50) Location -7/Factory Parts ------- > --- POWER (1) -------- (None) > --- PROPULSION (4) --- (None) > --- UTILITY (6) ------ Weight Redist. System Improved Signal Interpreter Advanced ECM Suite System Shield > --- WEAPON (2) ------- (None) > --- INVENTORY (5) ---- VTOL Module Medium Storage Unit Relay Coupler [NC] (18) Relay Coupler [Grunt] (19) Peak State ------------ > --- POWER ------------ Light Angular Momentum Engine > --- PROPULSION ------- Cesium-ion Thruster Xenon Bombardment Thruster Xenon Bombardment Thruster Cooled VTOL Module > --- UTILITY ---------- Scrap Suit Weight Redist. System Improved Signal Interpreter Hacking Suite System Shield > --- WEAPON ----------- Improved Datajack Chainsword > --- INVENTORY -------- VTOL Module Medium Storage Unit Advanced ECM Suite Relay Coupler [NC] Relay Coupler [Grunt] [Rating: 48] Favorites ----------- Power Light Ion Engine Engine Light Ion Engine Power Core Light Nuclear Core Propulsion Light Treads Treads Light Treads Leg Titanium Leg Flight Unit VTOL Module Utility Signal Interpreter Device Scrap Suit Storage High-capacity Storage Unit Processor Signal Interpreter Hackware Hacking Suite Weapon Light Assault Rifle Energy Gun Shock Rifle Energy Cannon Improved EM Pulse Cannon Ballistic Gun Light Assault Rifle Ballistic Cannon Improved Light Cannon Launcher Rocket Launcher Special Weapon Mining Laser Impact Weapon Hammer Slashing Weapon Chainsword Special Melee Weapon Improved Datajack Build | -11 -10 -10 -10 -9 -8 -7 ------- Run | Yrd Mat Min Exi Min Mat Fac Slots Evolved 6 | . . . . . 4 2 Power . | . . . . . . . Propulsion 2 | . . . . . 2 . Utility 4 | . . . . . 2 2 Weapon . | . . . . . . . Parts Attached 66 | 10 13 1 1 5 23 13 Power 11 | 1 3 . 1 1 5 . Engine 10 | 1 3 . 1 1 4 . Core 1 | . . . . . 1 . Reactor . | . . . . . . . Propulsion 22 | 3 3 . . 2 8 6 Treads 5 | 2 3 . . . . . Leg 7 | 1 . . . 2 4 . Wheel . | . . . . . . . Hover . | . . . . . . . Flight 10 | . . . . . 4 6 Utility 14 | 2 2 1 . . 3 6 Device 4 | 1 . . . . 1 2 Storage 4 | 1 1 1 . . . 1 Processor 3 | . 1 . . . 1 1 Hackware 3 | . . . . . 1 2 Protection . | . . . . . . . Artifact . | . . . . . . . Weapon 19 | 4 5 . . 2 7 1 Energy Gun 4 | 2 . . . . 2 . Energy Cannon 2 | . . . . . 2 . Ballistic Gun 7 | 1 5 . . 1 . . Ballistic Cannon 2 | . . . . 1 . 1 Launcher 1 | . . . . . 1 . Special Weapon 1 | 1 . . . . . . Impact Weapon 1 | . . . . . 1 . Slashing Weapon . | . . . . . . . Piercing Weapon . | . . . . . . . Special Melee Weapon 1 | . . . . . 1 . Unidentified Prototypes 3 | . . . . . 1 2 Parts Lost 18 | . . 1 . 3 4 10 Power 6 | . . 1 . 1 3 1 Propulsion 7 | . . . . 1 1 5 Utility 2 | . . . . . . 2 Weapon 3 | . . . . 1 . 2 Highest Loss Streak 10 | . . 1 . 3 3 10 To Critical Strikes . | . . . . . . . Average Backups 11 | 4 7 11 13 14 16 4 Power 1 | 1 2 3 3 3 . . Propulsion 1 | 1 2 2 2 . 1 . Utility 4 | . . 1 2 4 10 3 Weapon 2 | 1 2 3 5 4 2 . Tool/Special . | . . . . . . . Unused Backups 36 | 1 3 1 1 . 23 7 Power 5 | 1 1 . . . 3 . Propulsion 4 | . . 1 . . 2 1 Utility 20 | . 1 . 1 . 12 6 Weapon 6 | . 1 . . . 5 . Tool/Special 1 | . . . . . 1 . Average Slot Usage (%) 92 | . 99 93 100 87 88 85 Engine 9 | . 14 8 14 3 7 6 Treads 15 | . 28 28 28 1 . . Leg 10 | . . . . 25 32 . Flight 4 | . . . . . 2 28 Device 3 | . 2 . . . 9 8 Storage 10 | . 14 14 14 14 8 . Processor 11 | . 11 14 14 14 9 11 Hackware 1 | . . . . . . 12 Energy Gun 1 | . 3 . . . 3 . Energy Cannon 3 | . . . . . 11 . Ballistic Gun 16 | . 24 28 28 25 . . Peak Build Rating 48 | 7 8 9 11 14 38 48 Average Rating 19 | 5 7 8 9 11 35 39 On Entrance 11 | . 7 8 8 11 14 32 Avg Prop Armor Cover (%) 4 | . . . . . 4 . Naked Turns . | . . . . . . . Heaviest Build 85 | 15 85 85 45 52 65 17 Greatest Support 68 | 40 40 40 40 23 68 30 Greatest Overweight (x) 4 | . 2 2 1 4 4 . Average Overweight (x) . | . . 1 1 1 . . Largest Inventory Capacity 25 | 8 25 25 20 20 20 15 Average Capacity 15 | 7 9 22 20 20 18 5 Most Carried 20 | 8 8 16 19 20 20 5 Average Carried 12 | 4 7 12 15 18 18 4 Final Capacity 25 | 8 25 20 20 20 5 5 Final Carried 20 | 8 8 15 18 20 5 4 Scrap Suit Usage (%) 34 | . . . . . 89 98 Parts Cannibalized 2 | . . . . . . 2 Class Distribution -------------------- 86% | Mutant 7% | Hacker-Sprinter 6% | Sprinter Dominant Class ---------------- Mutant | -10/Materials Mutant | -10/Mines Mutant | -10/Exiles Mutant | -9/Mines Mutant | -8/Materials Hacker-Sprinter | -7/Factory Resources | -11 -10 -10 -10 -9 -8 -7 ----------- Run | Yrd Mat Min Exi Min Mat Fac Matter Collected 1354 | 310 228 46 . 75 474 221 Remotely . | . . . . . . . Salvage Created 1988 | 156 605 144 . 107 764 212 Parts 132 | 11 39 12 . 3 49 18 Haulers Intercepted 5 | . 1 . . . 2 2 Recyclers Shooed 5 | . 2 1 . . 2 . Parts Field Recycled . | . . . . . . . Retrieved Matter . | . . . . . . . Parts Self-Destructed . | . . . . . . . Prevented . | . . . . . . . Parts Restored . | . . . . . . . Kills | -11 -10 -10 -10 -9 -8 -7 ------- Run | Yrd Mat Min Exi Min Mat Fac Combat Hostiles Destroyed 43 | . 17 6 . 2 15 3 Melee 3 | . . . . . . 3 Guns 26 | . 17 6 . 2 1 . Cannons 4 | . . . . . 4 . AOE 9 | . . . . . 9 . Classes Destroyed 13 | 2 4 . . 1 6 . Worker 3 | . . . . . 3 . Builder 2 | . . . . . 2 . Tunneler 4 | 3 . 1 . . . . Hauler 5 | . 1 . . . 2 2 Recycler 5 | 1 2 . . . 2 . Mechanic 1 | . . . . . 1 . Operator 3 | . 1 . . . . 2 Swarmer 25 | . 12 4 . . 6 3 Grunt 11 | . 5 2 . 1 3 . Duelist 2 | . . . . 1 1 . Protector 1 | . . . . . 1 . Sentry 3 | . . . . . 3 . Hunter 1 | . . . . . 1 . Best Kill Streak 8 | 4 3 2 . 2 8 3 Combat Bots Only 6 | . 3 2 . 2 6 3 Max Kills in Single Turn 3 | 1 1 1 . 1 3 1 Gunslinging . | . . . . . . . Exploded 3 | . . . . . 3 . Melee 1 | . . . . . . 1 Uniques/NPCs Destroyed . | . . . . . . . Combat | -11 -10 -10 -10 -9 -8 -7 -------- Run | Yrd Mat Min Exi Min Mat Fac Hostile Shots Fired 322 | . 79 37 . 30 73 103 Missed 102 | . 28 10 . 7 19 38 Hits 220 | . 51 27 . 23 54 65 Melee 8 | . . . . 8 . . Projectile 212 | . 51 27 . 15 54 65 Critical Strikes 4 | . . . . 2 2 . Damage Taken 3082 | . 454 277 . 424 998 929 Core 811 | . 90 43 . 99 215 364 Absorbed by Shields . | . . . . . . . Regen/Repaired (Parts) 76 | . 56 . . . . 20 Core Remaining (%) 55 | 100 . . . 7 60 . Volleys Fired 143 | 8 58 15 . 15 47 . Largest 2 | 2 2 2 . 2 2 . Hottest 138 | 90 90 40 . 40 138 . Shots Fired 252 | 16 116 30 . 30 60 . Gun 215 | 16 116 30 . 30 23 . Cannon 23 | . . . . . 23 . Launcher 14 | . . . . . 14 . Special . | . . . . . . . Kinetic 152 | . 92 30 . 30 . . Thermal 19 | 8 11 . . . . . Explosive 14 | . . . . . 14 . Electromagnetic 67 | 8 13 . . . 46 . Robot Hit Streak 13 | 10 13 5 . 8 8 . Robot Miss Streak 6 | 1 6 2 . 4 3 . Penetration Max . | . . . . . . . Secondary Targets 3 | . 2 . . 1 . . Max Gunslinging Chain 1 | . 1 . . 1 . . Shots Hit Robots 176 | 12 71 19 . 21 36 17 Core Hits 108 | 5 34 11 . 8 44 6 Critical Kills 1 | . . . . 1 . . Critical Parts Destroyed 2 | . 1 . . . . 1 Critical Strikes 5 | . 2 . . 1 . 2 Burn 1 | . 1 . . . . . Destroy 2 | . 1 . . 1 . . Smash 1 | . . . . . . 1 Sever 1 | . . . . . . 1 Melee Attacks 70 | . . . . . 10 60 Impact 25 | . . . . . 6 19 Slashing 37 | . . . . . . 37 Piercing . | . . . . . . . Sneak Attacks 7 | . . . . . 4 3 Combat Hostiles . | . . . . . . . Follow-up Attacks . | . . . . . . . Damage Inflicted 3942 | 159 710 172 . 157 2111 633 Guns 1374 | 159 676 159 . 157 223 . Cannons 516 | . . . . . 516 . Explosions 1387 | . 22 . . . 1365 . Melee 628 | . . . . . . 628 Ramming 37 | . 12 13 . . 7 5 Kinetic 843 | . 527 159 . 157 . . Thermal 144 | 51 71 . . . 22 . Explosive 1343 | . . . . . 1343 . Electromagnetic 947 | 108 100 . . . 739 . Impact 106 | . . . . . . 106 Slashing 522 | . . . . . . 522 Piercing . | . . . . . . . Highest Corruption 5 | . . . . . . 5 Average Corruption 3 | . . . . . . 3 Corruption Purged . | . . . . . . . Corruption Blocked . | . . . . . . . Effects 16 | . . . . . . 16 Message Errors 5 | . . . . . . 5 Matter Fused 6 | . . . . . . 6 Heat Flow Errors 1 | . . . . . . 1 Energy Discharges 1 | . . . . . . 1 Parts Rejected 1 | . . . . . . 1 Data Loss (minor) 2 | . . . . . . 2 Overload Shots . | . . . . . . . Overflow Damage 52 | . . . . . 14 38 Projectiles 12 | . . . . . 12 . Explosions 2 | . . . . . 2 . Melee 38 | . . . . . . 38 Knockbacks . | . . . . . . . Impact . | . . . . . . . Kinetic . | . . . . . . . Secondary . | . . . . . . . Self-Inflicted Damage 23 | . . . . . 21 2 Shots 2 | . . . . . 2 . Rammed 11 | . 6 3 . . . 2 Targets Rammed 13 | . 6 4 . . 1 2 Kicked 1 | . . . . . 1 . Crushed 1 | . . 1 . . . . Highest Temperature 277 | 132 124 23 . 6 189 277 Average Temperature 50 | 49 38 12 . 3 50 142 Received Heat Transfer 435 | . 63 90 . 90 162 30 Siege Activations . | . . . . . . . Martial Activations . | . . . . . . . Shielding Activations . | . . . . . . . Robots Disrupted . | . . . . . . . Combat Hostiles . | . . . . . . . Robots Corrupted 2 | . . . . . 1 1 Combat Hostiles 1 | . . . . . 1 . Parts Fried 3 | . . . . . 2 1 Impact Corruptions 2 | . . . . . . 2 Robots Melted . | . . . . . . . Combat Hostiles . | . . . . . . . Parts Melted . | . . . . . . . Heat Transferred 470 | 148 272 . . . 50 . Parts Sabotaged . | . . . . . . . Parts Stolen . | . . . . . . . Parts Stripped . | . . . . . . . Power Chain Reactions 2 | . 1 . . . 1 . Alert | -11 -10 -10 -10 -9 -8 -7 ------- Run | Yrd Mat Min Exi Min Mat Fac Maximum Alert Level 3 | . . . . . 3 2 Low Security (%) 79 | 100 100 100 . 100 74 . Level 1 14 | . . . . . 10 90 Level 2 3 | . . . . . 6 9 Level 3 2 | . . . . . 8 . Level 4 . | . . . . . . . Level 5 . | . . . . . . . High Security . | . . . . . . . Max Security . | . . . . . . . Peak Influence 902 | 5 142 57 . 40 902 420 Initial 410 | . . 14 . . . 410 Average 110 | 1 42 7 . 6 193 328 Influence Increases 2500 | 20 481 170 . 50 1478 301 Destroy 0b10 Robot/C 1320 | . 340 120 . 40 760 60 Destroy 0b10 Robot/NC 140 | 20 20 5 . . 75 20 Destroy Leader 280 | . 62 30 . 10 164 14 Allied During Kill 86 | . . . . . 86 . Successful Hack 58 | . 9 . . . 7 42 Disable Machine 30 | . . . . . 30 . Anti-Garrison Action 150 | . . . . . 150 . Destroy Structure 136 | . 5 . . . 101 30 Partial Spotted 75 | . . . . . 15 60 Lose Combat Pursuer 225 | . 45 15 . . 90 75 Influence Decreases 2251 | 20 443 208 . 50 576 954 Entered New Map 516 | . . 24 . . . 492 Time Decay 1545 | 20 443 174 . 50 496 362 Lost Part 150 | . . 10 . . 40 100 Lost Ally 40 | . . . . . 40 . Squads Dispatched 18 | . 2 . . . 11 5 Investigation 6 | . 1 . . . 4 1 Extermination 2 | . . . . . . 2 Reinforcement 3 | . 1 . . . . 2 Assault 4 | . . . . . 4 . Garrison 3 | . . . . . 3 . Intercept . | . . . . . . . Searches Triggered . | . . . . . . . Construction Impeded . | . . . . . . . Haulers Reinforced . | . . . . . . . Active Scanning Responses . | . . . . . . . Cargo Convoy Interrupts . | . . . . . . . Stealth | -11 -10 -10 -10 -9 -8 -7 --------- Run | Yrd Mat Min Exi Min Mat Fac Distress Signals 6 | . 2 . . . 4 . Communications Jammed . | . . . . . . . Distress Signals . | . . . . . . . Times Spotted 102 | . 30 9 . 2 45 16 Peak Tracking Total 8 | . 5 3 . 2 8 7 Tactical Retreats 9 | . 2 1 . . 4 2 Traps | -11 -10 -10 -10 -9 -8 -7 ------- Run | Yrd Mat Min Exi Min Mat Fac Traps Triggered 3 | . 1 . . . 1 1 Indirectly . | . . . . . . . Trap Hack Attempts . | . . . . . . . Triggered . | . . . . . . . Disarmed . | . . . . . . . Reprogrammed . | . . . . . . . Reused . | . . . . . . . Traps Extracted . | . . . . . . . Installed . | . . . . . . . Triggered . | . . . . . . . Machines | -11 -10 -10 -10 -9 -8 -7 ---------- Run | Yrd Mat Min Exi Min Mat Fac Machines Disabled 3 | . . . . . 3 . Max in Single Turn 1 | . . . . . 1 . Garrison Access 1 | . . . . . 1 . Machines Repaired . | . . . . . . . Machines Dismantled . | . . . . . . . Machines Sabotaged . | . . . . . . . Overloaded Fab Kills . | . . . . . . . Hacking | -11 -10 -10 -10 -9 -8 -7 --------- Run | Yrd Mat Min Exi Min Mat Fac Machines Accessed 14 | . 2 . 2 . 4 6 Terminals 6 | . 1 . . . 2 3 Fabricators . | . . . . . . . Repair Stations 2 | . 1 . . . . 1 Recycling Units . | . . . . . . . Scanalyzers 4 | . . . . . 2 2 Garrison Access . | . . . . . . . Total Hacks 59 | . 5 . 24 . 15 15 Successful 49 | . 4 . 24 . 11 10 Failed 9 | . 1 . . . 3 5 Catastrophic 3 | . 1 . . . 1 1 Database Lockouts 1 | . . . . . 1 . Manual 17 | . 4 . 1 . 5 7 Terminals 14 | . 3 . . . 5 6 Fabricators . | . . . . . . . Repair Stations 4 | . 2 . . . . 2 Recycling Units . | . . . . . . . Scanalyzers 17 | . . . . . 10 7 Garrison Access . | . . . . . . . Terminal Hacks 26 | . . . 24 . . 2 Record 23 | . . . 23 . . . Scanalyzer Index 1 | . . . . . . 1 Alert Level 1 | . . . . . . 1 Proto ID Catalog 1 | . . . 1 . . . Fabricator Hacks . | . . . . . . . Repair Station Hacks 4 | . 2 . . . . 2 Scan Component 2 | . 1 . . . . 1 Repair 2 | . 1 . . . . 1 Recycling Unit Hacks . | . . . . . . . Scanalyzer 14 | . . . . . 9 5 Insert Component 6 | . . . . . 5 1 Analyze 4 | . . . . . 3 1 Retrieve Study 4 | . . . . . 1 3 Garrison Access Hacks . | . . . . . . . Unauthorized Hacks 4 | . 1 . . . 2 1 Terminals 4 | . 1 . . . 2 1 Operators 4 | . 1 . . . 2 1 Fabricators . | . . . . . . . Repair Stations . | . . . . . . . Recycling Units . | . . . . . . . Scanalyzers . | . . . . . . . Garrison Access . | . . . . . . . Data Cores Recovered 1 | . . . . . . 1 Used 1 | . . . . . . 1 Hacking Detections 10 | . 1 . . . 4 5 Full Trace Events 5 | . 1 . . . 3 1 Feedback Events . | . . . . . . . Feedback Blocked . | . . . . . . . Robot Schematics Acquired . | . . . . . . . Robots Built . | . . . . . . . Authchips . | . . . . . . . Time . | . . . . . . . Total Robot Build Rating . | . . . . . . . Part Schematics Acquired 4 | . . . . . 3 1 Parts Built . | . . . . . . . Authchips . | . . . . . . . Time . | . . . . . . . Total Part Build Rating . | . . . . . . . Part Studies Acquired 3 | . . . . . 1 2 Parts Repaired 2 | . 1 . . . . 1 Time 42 | . 26 . . . . 16 Parts Recycled . | . . . . . . . Recycled Matter . | . . . . . . . Retrieved Matter . | . . . . . . . Retrieved Components . | . . . . . . . Parts Scanalyzed 4 | . . . . . 3 1 Part Schematics Acquired 4 | . . . . . 3 1 Parts Damaged 2 | . . . . . 1 1 Bothacking | -11 -10 -10 -10 -9 -8 -7 ------------ Run | Yrd Mat Min Exi Min Mat Fac Used RIF Installer . | . . . . . . . Robots Hacked 2 | . . . . . 1 1 Non-combat 2 | . . . . . 1 1 Combat . | . . . . . . . Robot Hacks Applied 3 | . . . . . 2 1 parse_system 1 | . . . . . 1 . no_distress 2 | . . . . . 1 1 Relay Couplers Released 2 | . . . . . 2 . Machine Destruction 2 | . . . . . 2 . Fabnet Peak Effective % . | . . . . . . . Robots Rewired . | . . . . . . . Allies Hacked . | . . . . . . . Hacks Repelled . | . . . . . . . Allies | -11 -10 -10 -10 -9 -8 -7 -------- Run | Yrd Mat Min Exi Min Mat Fac Total Allies . | . . . . . . . Largest Group . | . . . . . . . Highest-Rated Group . | . . . . . . . Highest-Rated Ally . | . . . . . . . Total Orders . | . . . . . . . Ally Attacks 68 | . . . . . 68 . Total Damage 3631 | . . . . . 3631 . Kills 28 | . . . . . 28 . Allies Corrupted . | . . . . . . . Allies Melted . | . . . . . . . Turrets Deployed 3 | . . . . . 3 . Intel | -11 -10 -10 -10 -9 -8 -7 ------- Run | Yrd Mat Min Exi Min Mat Fac Active Infowar (turns) 286 | 39 243 . . . . 4 Seismic 282 | 39 243 . . . . . ECM 4 | . . . . . . 4 Robot Analysis Total . | . . . . . . . Derelict Logs Recovered 1 | . . 1 . . . . Drone Launches . | . . . . . . . Drone Recoveries . | . . . . . . . Exploration | -11 -10 -10 -10 -9 -8 -7 ------------- Run | Yrd Mat Min Exi Min Mat Fac Turns Passed 7090 | 152 1504 1668 720 382 1833 831 Spaces Moved 4856 | 69 743 601 298 163 897 2085 Core 7 | 5 . . . . . 2 Treads 1706 | 64 743 601 298 . . . Legs 752 | . . . . 163 589 . Wheels . | . . . . . . . Hover . | . . . . . . . Flight 2391 | . . . . . 308 2083 Fastest Speed 26 | 50 160 240 240 190 26 26 Average Speed 118 | 152 167 267 240 203 133 27 Slowest Speed 400 | 160 320 320 240 400 359 50 Overloaded Moves . | . . . . . . . Propulsion Burnouts . | . . . . . . . Robots Hopped 14 | . . . . . 4 10 Potential Cave-ins . | . . . . . . . Cave-ins Triggered . | . . . . . . . Exploration Rate (%) 49 | 4 97 71 60 41 42 34 Regions Visited 6 Branch Regions 3 Pre-discovered Areas 1 | . . . 1 . . . Known Exits Taken 5 | . 1 1 1 1 1 . Unknown Exits Taken 1 | 1 . . . . . . Scrap Searched 4 | . . 1 . 3 . . Spaces Dug 33 | . . . . . 3 30 Terrain Destroyed 141 | . 5 . . . 106 30 Melee 33 | . . . . . 3 30 Projectile . | . . . . . . . AOE 108 | . 5 . . . 103 . Terrain Rammed . | . . . . . . . Walls Destroyed . | . . . . . . . Machines Disabled . | . . . . . . . Actions | -11 -10 -10 -10 -9 -8 -7 --------- Run | Yrd Mat Min Exi Min Mat Fac Total 5860 | 97 915 634 304 190 1469 2251 Wait 543 | . 71 . . . 404 68 Move 4823 | 68 742 600 297 162 888 2066 Hop 13 | . . . . . 4 9 Pick Up 83 | 8 5 12 5 6 35 12 Fast Attach 33 | 8 4 1 . 2 12 6 Attach 18 | . . . 1 4 7 6 Detach 4 | 1 . . . . 2 1 Swap 35 | 3 11 . . . 15 6 Drop 82 | 1 18 2 1 1 44 15 Fire 143 | 8 58 15 . 15 47 . Melee 70 | . . . . . 10 60 Ram 2 | . . . . . . 2 Kick 1 | . . . . . 1 . Crush 10 | . 6 4 . . . . Escape Stasis . | . . . . . . . Rewire . | . . . . . . . Trap . | . . . . . . . Miscellaneous . | . . . . . . . Route ------- -11/Scrapyard -10/Materials (discovered 6 exits: *Mat x3 / *Min x2 / *Sub) -10/Mines (discovered 3 exits: *Mat / *Exi / *Sub) -10/Exiles -9/Mines -8/Materials -7/Factory (discovered 1 exit: [*Fac]) History --------- Turn | Location | Event 7 | -11/Scrapyard | Discovered new exit (range 16) 153 | -11/Scrapyard | Entered Materials 314 | -10/Materials | Build established: Mutant 545 | -10/Materials | Repaired Lgt. Assault Rifle 629 | -10/Materials | Discovered new exit (range 16) 794 | -10/Materials | Discovered new exit (range 13) 837 | -10/Materials | Discovered new exit (range 14) 956 | -10/Materials | Discovered new exit (range 16) 980 | -10/Materials | Identified exit to Materials 1042 | -10/Materials | Discovered new exit (range 5) 1178 | -10/Materials | Discovered exit to Materials (range 15) 1654 | -10/Materials | Identified exit to Mines 1657 | -10/Materials | Entered Mines 1673 | -10/Mines | Met a Derelict bent on vengeance 2093 | -10/Mines | Discovered new exit (range 10) 2157 | -10/Mines | Identified exit to Subcaves 2281 | -10/Mines | Core integrity fell below 50% 2390 | -10/Mines | Found a Scrap Suit stashed away for nefarious purposes 2395 | -10/Mines | Found Scrap Suit 3197 | -10/Mines | Discovered exit to Materials (range 11) 3236 | -10/Mines | Learned 2 Materials zone layouts 3308 | -10/Mines | Deemed a non-threat by the Exiles lab entrance 3310 | -10/Mines | Discovered new exit (range 5) 3320 | -10/Mines | Identified exit to Exiles 3325 | -10/Mines | Entered Exiles 3386 | -10/Exiles | Met 8R-AWN 3425 | -10/Exiles | Met EX-HEX 3499 | -10/Exiles | Met EX-BIN 3648 | -10/Exiles | Aligned with FarCom system 3650 | -10/Exiles | Given EX-Vault access code 3710 | -10/Exiles | Opened EX-Vault 3720 | -10/Exiles | Found Deploy-a-Sentry 3723 | -10/Exiles | Found Deploy-a-Sentry 3727 | -10/Exiles | Found Deploy-a-Sentry 3778 | -10/Exiles | Warned to stay clear of 0b10 Research branches 3848 | -10/Exiles | Met EX-DEC 3869 | -10/Exiles | Learned location of Zion (-7) 4018 | -10/Exiles | Discovered new exit (range 12) 4042 | -10/Exiles | Identified exit to Mines 4045 | -10/Exiles | Left Exiles lab with Deploy-a-Sentry 4045 | -10/Exiles | Entered Mines 4073 | -9/Mines | Core integrity fell below 20% 4100 | -9/Mines | Lost 3 parts (1p1n1w) 4409 | -9/Mines | Discovered new exit (range 8) 4425 | -9/Mines | Identified exit to Materials 4427 | -9/Mines | Entered Materials 4427 | -8/Materials | Evolved 4 slots: Propulsion x2, Utility x2 4617 | -8/Materials | Garrison activated, responded to threat 4634 | -8/Materials | DAS Turret deployed 5344 | -8/Materials | Lost 3 parts (2p1n) 5940 | -8/Materials | DAS Turret deployed 6027 | -8/Materials | First assault squad dispatched 6087 | -8/Materials | DAS Turret deployed 6179 | -8/Materials | Central database locked down 6182 | -8/Materials | Discovered new exit (range 16) 6185 | -8/Materials | Identified exit to Factory 6260 | -8/Materials | Entered Factory 6260 | -7/Factory | Evolved 2 slots: Utility x2 6307 | -7/Factory | Repaired VTOL Module+ 6505 | -7/Factory | Discovered new exit (range 12) 6823 | -7/Factory | Build established: Hacker-Sprinter 7091 | -7/Factory | Self-destructed Last Messages --------------- repair VTOL Module+. 07050_ VTOL Module+ destroyed. 07051_ U-05 Engineer builds a Wall. 07058_ System corrupted: Energy discharge (-57). 07059_ S-27 Virus destroyed. 07061_ Hacking Suite destroyed. 07061_ S-27 Virus destroyed. 07064_ Acquired 5 matter. 07064_ Destroyed VTOL Module. 07065_ VTOL Module+ destroyed. 07071_ Destroyed VTOL Module. 07074_ Lgt. Angular Momentum Engine destroyed. 07075_ Xenon Bombardment Thruster+ destroyed. 07077_ VTOL Module+ destroyed. 07080_ Scrap Suit destroyed. 07082_ Acquired 10 matter. 07086_ Imp. Datajack destroyed. 07087_ Chainsword+ destroyed. 07088_ Acquired VTOL Module+. 07089_ Slammed into P-60 Hacker. Map ----- +----------------------------------------------------+ | | | | | | | | | ?????????????????????????????????????????????????? | | ?????????????????????????????????????????????????? | | ?????????????????????????????????????????????????? | | ?????????????????????????????????????????????????? | | ?????????????????????????????????????????????????? | | ?????????????????????????????????????????????????? | | ?????????????????????????????????????????????????? | | ?????????????????????????????????????????????????? | | ?????????????????????????????????????????????????? | | ?????????????????????????????????????????????????? | | ?????????????????????????????????????????????????? | | ?????????????????????????????????????????????????? | | ?????????????????????????????????????????????????? | | ?????????????????????????????????????????????????? | | ?????????????????????????????????????????????????? | | ?????????????????????????????????????????????????? | | ?????????s???????????????????????????????????????? | | ?????????????????????###########?????????????????? | | ?????????????????????# s #?????????????????? | | ????????????????????##*""""""" #?????????????????? | | ????????????????????#[%"""Y""" #?????????????????? | | ????????????????????##s %@p s #?????????????????? | | ?????????????????????#####Y########??????????????? | | ????????????? ????????# #???????????#### | | ????????????# ####### #############T # | | ????????????# | | ????????????# [ | | ????????????# | | ????????????# %* | | ????????????# *[[ = | | ????????????# ####### ##########"##### | | ????????????? ???????# [ ###??????###???? | | ?????????????? ?????????###########??????????????? | | ?????????????????????????????????????????????????? | | ?????????????????????????????????????????????????? | | ?????????????????????????????????????????????????? | | ?????????????????????????????????????????????????? | | ?????????????????????????????????????????????????? | | ?????????????????????????????????????????????????? | | ?????????????????????????????????????????????????? | | ?????????????????????????????????????????????????? | | ?????????????????????????????????????????????????? | | ?????????????????????????????????????????????????? | | ?????????????????????????????????????????????????? | | ?????????????????????????????????????????????????? | | ?????????????????????????????????????????????????? | +----------------------------------------------------+ Best States ------------- Heat Dissipation 34 Energy Generation 18 Energy Capacity 265 Matter Stores 300 Matter Capacity 300 Sight Range 16 Terrain Scan Density 10 Additional Mass Support 6 Evasion (%) 64 Core Analysis 6 Recoil Reduction 2 Offensive Hacking 10 Defensive Hacking 10 Item Schematics ----------------- VTOL Module | -8/Materials | Scanalyzed Coolant Injector | -8/Materials | Scanalyzed Melee Analysis Suite | -8/Materials | Scanalyzed Xenon Bombardment Thruster | -7/Factory | Scanalyzed Robot Schematics ------------------ None Fabricated ------------ Nothing Repaired ---------- Lgt. Assault Rifle | 30% | -10/Materials VTOL Module | 48% | -7/Factory Studied --------- VTOL Module | -8/Materials | Hacked Xenon Bombardment Thruster | -7/Factory | Hacked Chainsword | -7/Factory | Hacked Alien Tech Used ----------------- None Achievements -------------- Dynamic Key Challenges ------------ None Game ------ Seed 6fe5cc2e-9934-4870-bea1-987e Manual? 1 Play Time 01:57:35 Cumulative 42.1 hours Start 2026.07.29 @ 18:03:45 End 2026.07.29 @ 20:20:57 Sessions 1 Manual Loads 0 Difficulty Rogue Special Mode None Game No. 43 Rogue 43 Adventurer 0 Explorer 0 Win Type - Total 0 Types 0/0/0/0/0/0/0/0/0/0 Lore% 8 Gallery% 22 Achievement% 18 Wizard Run 0 Options --------- Layout 1 ASCII 0 Keyboard 0 Movement Mouse Keybinds 0 Fullscreen 2 Font 24/Smallcaps Map View 50x35 Zoom Use 0% Tactical HUD 1 Map Filters NONE Filters NONE Steam 1 RUN: 431a3c5a-34f3-4df2-b54f-ba06e4e6c5c7